[Event "44th Chess Olympiad Women 2022"]
[Site "Chennai"]
[Date "2022.08.06"]
[Round "8.26"]
[White "Puuska, Heini"]
[Black "Caku, Kler"]
[Result "1-0"]
[WhiteElo "2010"]
[BlackElo "1626"]
[Annotator "NA"]
[PlyCount "110"]
[EventDate "2022.??.??"]
[TimeControl "60"]

1. d4 {[%emt 0:00:04]} d5 {[%emt 0:00:05]} 2. c4 {[%emt 0:00:08]} e6 {[%emt 0:
00:00]} 3. Nc3 {[%emt 0:00:26]} Nf6 {[%emt 0:00:17]} 4. Bg5 {[%emt 0:00:26]}
Be7 {[%emt 0:00:19]} 5. e3 {[%emt 0:00:31]} Nbd7 {[%emt 0:00:22]} 6. Nf3 {
[%emt 0:01:02]} h6 {[%emt 0:03:19]} 7. Bh4 {[%emt 0:00:33]} O-O {[%emt 0:01:54]
} 8. Rc1 {[%emt 0:00:35]} c6 {[%emt 0:04:18]} 9. cxd5 {[%emt 0:04:51]} exd5 {
[%emt 0:00:15]} 10. Bd3 {[%emt 0:00:25]} Ne4 {[%emt 0:03:01]} 11. Bxe7 {
[%emt 0:00:34]} Qxe7 {[%emt 0:00:13]} 12. O-O {[%emt 0:00:54]} f5 {[%emt 0:00:
00]} 13. Ne2 {[%emt 0:04:40]} Qd6 {[%emt 0:11:44]} 14. Nf4 {[%emt 0:04:14]} Re8
{[%emt 0:03:09]} 15. Bb1 {[%emt 0:03:18]} Qf6 {[%emt 0:09:42]} 16. b4 {[%emt 0:
00:00]} a6 {[%emt 0:04:03]} 17. a4 {[%emt 0:00:57]} Ng5 {[%emt 0:11:54]} 18. b5
{[%emt 0:03:22]} axb5 {[%emt 0:02:33]} 19. axb5 {[%emt 0:00:11]} Nxf3+ {
[%emt 0:00:47]} 20. Qxf3 {[%emt 0:00:41]} Nb6 {[%emt 0:02:25]} 21. Bd3 {
[%emt 0:02:44]} Bd7 {[%emt 0:02:09]} 22. Rb1 {[%emt 0:09:12]} Reb8 {[%emt 0:00:
00]} 23. Qg3 {[%emt 0:03:55]} Be8 {[%emt 0:04:58]} 24. h3 {[%emt 0:04:43]} Bf7
{[%emt 0:03:14]} 25. Ne2 {[%emt 0:05:33]} Nd7 {[%emt 0:04:17]} 26. Rfc1 {
[%emt 0:04:08]} Rc8 {[%emt 0:05:48]} 27. bxc6 {[%emt 0:02:00]} bxc6 {[%emt 0:
00:00]} 28. Rb7 {[%emt 0:02:19]} Nf8 {[%emt 0:03:01]} 29. Rc7 {[%emt 0:01:43]}
Rxc7 {[%emt 0:01:34]} 30. Qxc7 {[%emt 0:00:06]} Be8 {[%emt 0:02:23]} 31. Ng3 {
[%emt 0:03:31]} g6 {[%emt 0:02:31]} 32. Rb1 {[%emt 0:03:00]} Ra3 {[%emt 0:00:
00]} 33. Bf1 {[%emt 0:01:28]} Bf7 {[%emt 0:01:15]} 34. Rb8 {[%emt 0:02:38]} Rc3
{[%emt 0:03:08]} 35. Ne2 {[%emt 0:10:00]} Rc2 {[%emt 0:00:51]} 36. Nf4 {
[%emt 0:00:18]} g5 {[%emt 0:02:10]} 37. Nd3 {[%emt 0:01:41]} Be6 {[%emt 0:00:
00]} 38. Nc5 {[%emt 0:02:54]} f4 {[%emt 0:01:38]} 39. Qxc6 {[%emt 0:08:45]}
fxe3 {[%emt 0:00:40]} 40. Qxe6+ {[%emt 0:01:03]} Qxe6 {[%emt 0:00:32]} 41. Nxe6
{[%emt 0:31:32]} exf2+ {[%emt 0:01:42]} 42. Kh2 {[%emt 0:00:00]} Kf7 {[%emt 0:
00:00]} 43. Rxf8+ {[%emt 0:00:00]} Kxe6 {[%emt 0:00:14]} 44. Kg3 {[%emt 0:00:
00]} Rd2 {[%emt 0:03:29]} 45. Rh8 {[%emt 0:00:00]} Rxd4 {[%emt 0:02:30]} 46.
Rxh6+ {[%emt 0:00:00]} Kf5 {[%emt 0:00:44]} 47. Kxf2 {[%emt 0:00:00]} Rf4+ {
[%emt 0:00:47]} 48. Ke1 {[%emt 0:00:00]} Ke4 {[%emt 0:03:07]} 49. Be2 {[%emt 0:
00:00]} Rf5 {[%emt 0:02:41]} 50. Bf3+ {[%emt 0:00:00]} Kd3 {[%emt 0:01:32]} 51.
Rd6 {[%emt 0:00:00]} Re5+ {[%emt 0:00:45]} 52. Kf2 {[%emt 0:00:00]} d4 {
[%emt 0:00:25]} 53. Rd5 {[%emt 0:00:00]} Re8 {[%emt 0:01:35]} 54. Rxg5 {
[%emt 0:00:00]} Kd2 {[%emt 0:00:18]} 55. Rd5 {[%emt 0:00:00]} d3 {[%emt 0:00:
00]} 1-0

[Event "44th Chess Olympiad Women 2022"]
[Site "Chennai"]
[Date "2022.08.06"]
[Round "8.26"]
[White "Shuqja, Klean"]
[Black "Paasikangas, Johanna"]
[Result "1/2-1/2"]
[WhiteElo "1883"]
[BlackElo "2155"]
[Annotator "NA RC"]
[PlyCount "81"]
[EventDate "2022.??.??"]
[TimeControl "60"]

1. e4 {[%emt 0:00:01]} c5 {[%emt 0:00:09]} 2. Nf3 {[%emt 0:00:02]} g6 {[%emt 0:
00:00]} 3. c4 {[%emt 0:00:24]} Bg7 {[%emt 0:00:24]} 4. d4 {[%emt 0:00:02]} d6 {
[%emt 0:01:00]} 5. h3 {[%emt 0:07:58]} cxd4 {[%emt 0:05:45]} 6. Nxd4 {[%emt 0:
00:00]} Qb6 {[%emt 0:01:52]} 7. Nb3 {[%emt 0:01:31]} Na6 {[%emt 0:03:40]} 8.
Be3 {[%emt 0:04:47]} Qc7 {[%emt 0:02:51]} 9. Nc3 {[%emt 0:11:11]} b6 {[%emt 0:
00:00]} 10. Nd5 {[%emt 0:08:00]} Qd8 {[%emt 0:07:45]} 11. Nd4 {[%emt 0:09:50]}
Bd7 {[%emt 0:10:18]} 12. Be2 {[%emt 0:05:36]} Nf6 {[%emt 0:05:42]} 13. Nxf6+ {
[%emt 0:06:29]} Bxf6 {[%emt 0:00:17]} 14. O-O {[%emt 0:00:21]} O-O {[%emt 0:00:
00]} 15. Rc1 {[%emt 0:01:40]} e5 {[%emt 0:09:29]} 16. Nb5 {[%emt 0:05:52]} Bxb5
{[%emt 0:01:22]} 17. cxb5 {[%emt 0:00:01]} Nc5 {[%emt 0:00:17]} 18. Qd5 {
[%emt 0:01:58]} Qe7 {[%emt 0:04:46]} 19. b4 {[%emt 0:03:12]} Ne6 {[%emt 0:00:
00]} 20. Rc6 {[%emt 0:01:57]} Rad8 {[%emt 0:01:33]} 21. Rd1 {[%emt 0:09:29]}
Nd4 {[%emt 0:01:33]} 22. Bxd4 {[%emt 0:00:24]} exd4 {[%emt 0:00:07]} 23. a4 {
[%emt 0:01:50]} Rfe8 {[%emt 0:02:29]} 24. Bd3 {[%emt 0:01:02]} Be5 {[%emt 0:00:
00]} 25. Rdc1 {[%emt 0:01:52]} Rd7 {[%emt 0:02:56]} 26. a5 {[%emt 0:01:20]} Rb8
{[%emt 0:05:30]} 27. Rc8+ {[%emt 0:04:39]} Rxc8 {[%emt 0:00:11]} 28. Rxc8+ {
[%emt 0:00:02]} Rd8 {[%emt 0:05:34]} 29. Rxd8+ {[%emt 0:02:02]} Qxd8 {[%emt 0:
00:00]} 30. a6 {[%emt 0:03:20]} Kg7 {[%emt 0:02:52]} 31. g3 {[%emt 0:03:46]} h5
{[%emt 0:06:44]} 32. f4 {[%emt 0:03:24]} Bf6 {[%emt 0:01:26]} 33. Kg2 {[%emt 0:
00:00]} Qc7 {[%emt 0:01:45]} 34. Bc4 {[%emt 0:01:46]} Qe7 {[%emt 0:00:37]} 35.
Kf3 {[%emt 0:00:30]} Kf8 {[%emt 0:02:49]} 36. Qa8+ {[%emt 0:00:42]} Kg7 {
[%emt 0:00:14]} 37. Qb7 {[%emt 0:00:24]} Kf8 {[%emt 0:01:59]} 38. Qc8+ {
[%emt 0:00:31]} Kg7 {[%emt 0:00:09]} 39. Qb7 {[%emt 0:00:37]} Kf8 {[%emt 0:00:
00]} 40. Qa8+ {[%emt 0:00:23]} Kg7 {[%emt 0:00:07]} 41. Qb7 {[%emt 0:09:43]}
1/2-1/2

[Event "44th Chess Olympiad Women 2022"]
[Site "Chennai"]
[Date "2022.08.06"]
[Round "8.27"]
[White "Khamdamova, Afruza"]
[Black "Eftovska, Lea"]
[Result "1-0"]
[WhiteElo "1969"]
[BlackElo "1634"]
[Annotator "NA RC"]
[PlyCount "85"]
[EventDate "2022.??.??"]
[TimeControl "60"]

1. e4 {[%emt 0:00:01]} e5 {[%emt 0:00:07]} 2. Nf3 {[%emt 0:00:07]} Nc6 {
[%emt 0:00:12]} 3. Bb5 {[%emt 0:00:08]} a6 {[%emt 0:00:21]} 4. Ba4 {[%emt 0:00:
00]} Nf6 {[%emt 0:00:22]} 5. O-O {[%emt 0:00:12]} b5 {[%emt 0:00:05]} 6. Bb3 {
[%emt 0:00:04]} Be7 {[%emt 0:00:15]} 7. d4 {[%emt 0:00:06]} d6 {[%emt 0:10:11]}
8. c3 {[%emt 0:00:41]} O-O {[%emt 0:00:30]} 9. h3 {[%emt 0:01:48]} Bb7 {
[%emt 0:08:27]} 10. Re1 {[%emt 0:02:48]} Rb8 {[%emt 0:05:58]} 11. Nbd2 {
[%emt 0:01:01]} exd4 {[%emt 0:05:31]} 12. cxd4 {[%emt 0:00:08]} Na5 {[%emt 0:
00:00]} 13. Bc2 {[%emt 0:00:19]} c5 {[%emt 0:00:42]} 14. Nf1 {[%emt 0:07:24]}
Re8 {[%emt 0:04:32]} 15. Ng3 {[%emt 0:00:21]} g6 {[%emt 0:00:26]} 16. d5 {
[%emt 0:12:33]} Bf8 {[%emt 0:03:14]} 17. b3 {[%emt 0:09:08]} Bg7 {[%emt 0:00:
00]} 18. Bb2 {[%emt 0:01:02]} Rc8 {[%emt 0:04:43]} 19. Rb1 {[%emt 0:08:18]} b4
{[%emt 0:10:03]} 20. Nd2 {[%emt 0:02:16]} c4 {[%emt 0:02:28]} 21. bxc4 {
[%emt 0:01:37]} Nxc4 {[%emt 0:00:34]} 22. Nxc4 {[%emt 0:00:36]} Rxc4 {[%emt 0:
00:00]} 23. Bd3 {[%emt 0:01:18]} Rc7 {[%emt 0:07:50]} 24. Bd4 {[%emt 0:00:33]}
Rce7 {[%emt 0:00:22]} 25. Qd2 {[%emt 0:07:03]} a5 {[%emt 0:06:07]} 26. Qb2 {
[%emt 0:01:11]} Nh5 {[%emt 0:06:17]} 27. Nxh5 {[%emt 0:00:25]} Bxd4 {[%emt 0:
00:00]} 28. Qxd4 {[%emt 0:00:04]} gxh5 {[%emt 0:00:06]} 29. Re3 {[%emt 0:00:15]
} h4 {[%emt 0:03:58]} 30. Bb5 {[%emt 0:12:24]} Rf8 {[%emt 0:00:31]} 31. Rf3 {
[%emt 0:01:41]} Re5 {[%emt 0:01:51]} 32. Rf4 {[%emt 0:02:23]} Bc8 {[%emt 0:00:
00]} 33. Rb3 {[%emt 0:06:29]} Qg5 {[%emt 0:07:23]} 34. g3 {[%emt 0:02:42]} Bxh3
{[%emt 0:02:30]} 35. Rxh4 {[%emt 0:00:06]} Qc1+ {[%emt 0:00:31]} 36. Kh2 {
[%emt 0:00:03]} Bf1 {[%emt 0:01:10]} 37. Bd7 {[%emt 0:07:34]} Be2 {[%emt 0:00:
00]} 38. Bf5 {[%emt 0:01:04]} h5 {[%emt 0:01:48]} 39. Qe3 {[%emt 0:07:16]} Qxe3
{[%emt 0:00:34]} 40. Rxe3 {[%emt 0:00:03]} Bc4 {[%emt 0:01:22]} 41. Rxh5 {
[%emt 0:30:56]} Bxa2 {[%emt 0:31:23]} 42. Rg5+ {[%emt 0:00:07]} Kh8 {[%emt 0:
00:00]} 43. g4 {[%emt 0:00:02]} 1-0

[Event "44th Chess Olympiad Women 2022"]
[Site "Chennai"]
[Date "2022.08.06"]
[Round "8.27"]
[White "Nikolovska, Dragana"]
[Black "Bobomurodova, Maftuna"]
[Result "1/2-1/2"]
[WhiteElo "1876"]
[BlackElo "1914"]
[Annotator "NA RC"]
[PlyCount "73"]
[EventDate "2022.??.??"]
[TimeControl "60"]

1. e4 {[%emt 0:00:05]} e5 {[%emt 0:00:16]} 2. Nf3 {[%emt 0:00:17]} Nc6 {
[%emt 0:00:09]} 3. Bb5 {[%emt 0:00:46]} Nf6 {[%emt 0:00:08]} 4. Qe2 {[%emt 0:
00:00]} a6 {[%emt 0:08:42]} 5. Ba4 {[%emt 0:01:12]} d6 {[%emt 0:05:19]} 6. c3 {
[%emt 0:00:25]} g6 {[%emt 0:04:14]} 7. O-O {[%emt 0:01:48]} Bg7 {[%emt 0:00:40]
} 8. Rd1 {[%emt 0:04:54]} O-O {[%emt 0:04:45]} 9. d3 {[%emt 0:04:48]} b5 {
[%emt 0:02:56]} 10. Bb3 {[%emt 0:02:05]} Na5 {[%emt 0:01:47]} 11. Bc2 {[%emt 0:
00:00]} c5 {[%emt 0:00:20]} 12. Nbd2 {[%emt 0:11:16]} Qc7 {[%emt 0:04:41]} 13.
Nf1 {[%emt 0:01:43]} Bb7 {[%emt 0:01:38]} 14. a4 {[%emt 0:12:48]} Nc6 {[%emt 0:
00:00]} 15. Bg5 {[%emt 0:07:03]} h6 {[%emt 0:09:31]} 16. Bxf6 {[%emt 0:01:50]}
Bxf6 {[%emt 0:00:02]} 17. Ne3 {[%emt 0:00:21]} Ne7 {[%emt 0:10:18]} 18. c4 {
[%emt 0:03:13]} Bc6 {[%emt 0:03:19]} 19. Ra3 {[%emt 0:04:41]} Qb7 {[%emt 0:00:
00]} 20. b3 {[%emt 0:04:58]} Bg7 {[%emt 0:04:21]} 21. axb5 {[%emt 0:16:04]}
axb5 {[%emt 0:00:04]} 22. Rda1 {[%emt 0:00:08]} Rxa3 {[%emt 0:01:49]} 23. Rxa3
{[%emt 0:00:02]} Ra8 {[%emt 0:00:01]} 24. Rxa8+ {[%emt 0:01:09]} Qxa8 {[%emt 0:
00:00]} 25. Bb1 {[%emt 0:00:39]} b4 {[%emt 0:03:55]} 26. Qa2 {[%emt 0:03:27]}
Qxa2 {[%emt 0:00:10]} 27. Bxa2 {[%emt 0:00:01]} f5 {[%emt 0:00:11]} 28. Bb1 {
[%emt 0:01:16]} Kf7 {[%emt 0:00:40]} 29. Nd2 {[%emt 0:07:01]} Bf6 {[%emt 0:00:
00]} 30. Nf3 {[%emt 0:01:32]} Bd7 {[%emt 0:01:18]} 31. h3 {[%emt 0:00:23]} Bg5
{[%emt 0:00:52]} 32. Nxg5+ {[%emt 0:02:24]} hxg5 {[%emt 0:00:02]} 33. f3 {
[%emt 0:02:05]} Nc6 {[%emt 0:00:26]} 34. Bc2 {[%emt 0:00:30]} Nd4 {[%emt 0:00:
00]} 35. Bd1 {[%emt 0:00:07]} Be6 {[%emt 0:00:13]} 36. Kf2 {[%emt 0:00:26]} f4
{[%emt 0:00:28]} 37. Nf1 {[%emt 0:00:51]} 1/2-1/2

[Event "44th Chess Olympiad Women 2022"]
[Site "Chennai"]
[Date "2022.08.06"]
[Round "8.27"]
[White "Omonova, Umida"]
[Black "Manova, Ivana"]
[Result "1-0"]
[WhiteElo "2195"]
[BlackElo "1849"]
[Annotator "NA RC"]
[PlyCount "77"]
[EventDate "2022.??.??"]
[TimeControl "60"]

1. e4 {[%emt 0:00:13]} e5 {[%emt 0:00:15]} 2. Nf3 {[%emt 0:00:06]} Nc6 {
[%emt 0:00:08]} 3. Bc4 {[%emt 0:00:08]} Bc5 {[%emt 0:00:10]} 4. d3 {[%emt 0:00:
00]} Nf6 {[%emt 0:00:25]} 5. c3 {[%emt 0:00:17]} d6 {[%emt 0:00:31]} 6. O-O {
[%emt 0:00:14]} h6 {[%emt 0:00:30]} 7. Re1 {[%emt 0:00:17]} O-O {[%emt 0:00:18]
} 8. Nbd2 {[%emt 0:00:29]} a5 {[%emt 0:00:57]} 9. Nf1 {[%emt 0:01:31]} Be6 {
[%emt 0:03:13]} 10. Bb5 {[%emt 0:01:02]} Ne7 {[%emt 0:00:47]} 11. Ng3 {[%emt 0:
00:00]} Ng6 {[%emt 0:02:14]} 12. h3 {[%emt 0:02:15]} c6 {[%emt 0:09:26]} 13.
Ba4 {[%emt 0:00:10]} Qc7 {[%emt 0:06:41]} 14. d4 {[%emt 0:03:14]} Ba7 {[%emt 0:
00:00]} 15. Be3 {[%emt 0:03:19]} Rfd8 {[%emt 0:05:27]} 16. Qc1 {[%emt 0:06:13]}
b5 {[%emt 0:15:18]} 17. Bb3 {[%emt 0:01:28]} Bxb3 {[%emt 0:05:42]} 18. axb3 {
[%emt 0:00:08]} d5 {[%emt 0:02:12]} 19. Nxe5 {[%emt 0:02:41]} Nxe4 {[%emt 0:00:
00]} 20. Nxg6 {[%emt 0:02:03]} fxg6 {[%emt 0:03:29]} 21. Nxe4 {[%emt 0:00:43]}
dxe4 {[%emt 0:00:02]} 22. Bf4 {[%emt 0:00:11]} Qf7 {[%emt 0:00:29]} 23. Rxa5 {
[%emt 0:01:41]} Rf8 {[%emt 0:02:32]} 24. Rxe4 {[%emt 0:03:21]} g5 {[%emt 0:00:
00]} 25. Be3 {[%emt 0:05:16]} Rad8 {[%emt 0:13:38]} 26. Qa1 {[%emt 0:08:41]}
Bb8 {[%emt 0:00:00]} 27. b4 {[%emt 0:01:15]} Qd5 {[%emt 0:00:00]} 28. Qa2 {
[%emt 0:01:56]} Rf7 {[%emt 0:00:00]} 29. Qxd5 {[%emt 0:00:23]} cxd5 {[%emt 0:
00:00]} 30. Re6 {[%emt 0:00:08]} Bd6 {[%emt 0:00:00]} 31. Rxb5 {[%emt 0:06:06]}
Ra7 {[%emt 0:00:00]} 32. Bd2 {[%emt 0:00:10]} Ra2 {[%emt 0:00:00]} 33. g3 {
[%emt 0:00:38]} Rxb2 {[%emt 0:00:00]} 34. Rxd5 {[%emt 0:00:18]} Rxd2 {[%emt 0:
00:00]} 35. Rexd6 {[%emt 0:00:06]} Rf8 {[%emt 0:00:12]} 36. Rd8 {[%emt 0:00:16]
} Rdxf2 {[%emt 0:00:03]} 37. Rxf8+ {[%emt 0:00:08]} Rxf8 {[%emt 0:00:04]} 38.
b5 {[%emt 0:00:18]} Kf7 {[%emt 0:01:44]} 39. Rf5+ {[%emt 0:00:05]} 1-0

[Event "44th Chess Olympiad Women 2022"]
[Site "Chennai"]
[Date "2022.08.06"]
[Round "8.27"]
[White "Stojkovska, Monika"]
[Black "Yakubbaeva, Nilufar"]
[Result "1-0"]
[WhiteElo "2091"]
[BlackElo "2299"]
[Annotator "RC"]
[PlyCount "107"]
[EventDate "2022.??.??"]
[TimeControl "60"]

1. d4 {[%emt 0:00:06]} Nf6 {[%emt 0:00:15]} 2. c4 {[%emt 0:00:07]} e6 {[%emt 0:
00:00]} 3. Nc3 {[%emt 0:00:14]} Bb4 {[%emt 0:00:11]} 4. f3 {[%emt 0:00:14]} d5
{[%emt 0:03:09]} 5. a3 {[%emt 0:00:33]} Bxc3+ {[%emt 0:00:32]} 6. bxc3 {
[%emt 0:00:06]} c5 {[%emt 0:01:53]} 7. cxd5 {[%emt 0:00:29]} exd5 {[%emt 0:00:
00]} 8. e3 {[%emt 0:01:36]} O-O {[%emt 0:00:16]} 9. Bd3 {[%emt 0:00:39]} Nc6 {
[%emt 0:06:11]} 10. Ne2 {[%emt 0:00:51]} Re8 {[%emt 0:00:49]} 11. O-O {[%emt 0:
00:00]} Qc7 {[%emt 0:00:33]} 12. Re1 {[%emt 0:01:26]} Bd7 {[%emt 0:02:14]} 13.
Ng3 {[%emt 0:05:49]} Rad8 {[%emt 0:08:55]} 14. Ra2 {[%emt 0:10:34]} Na5 {
[%emt 0:08:39]} 15. Rf2 {[%emt 0:17:27]} cxd4 {[%emt 0:07:55]} 16. cxd4 {
[%emt 0:00:27]} Nc6 {[%emt 0:07:54]} 17. Bb2 {[%emt 0:05:04]} Be6 {[%emt 0:00:
00]} 18. Bb1 {[%emt 0:14:17]} Qd6 {[%emt 0:04:54]} 19. e4 {[%emt 0:21:21]} dxe4
{[%emt 0:03:58]} 20. fxe4 {[%emt 0:00:04]} Ng4 {[%emt 0:03:44]} 21. Rd2 {
[%emt 0:01:25]} Qf4 {[%emt 0:03:12]} 22. Nf1 {[%emt 0:05:47]} Na5 {[%emt 0:00:
00]} 23. Qf3 {[%emt 0:00:25]} Qh6 {[%emt 0:01:59]} 24. Rdd1 {[%emt 0:01:19]}
Nc4 {[%emt 0:05:38]} 25. Bc1 {[%emt 0:00:54]} Qf6 {[%emt 0:01:22]} 26. Qxf6 {
[%emt 0:04:56]} Nxf6 {[%emt 0:00:37]} 27. h3 {[%emt 0:00:01]} h6 {[%emt 0:00:
00]} 28. Ng3 {[%emt 0:01:47]} Rc8 {[%emt 0:02:30]} 29. Bd3 {[%emt 0:01:37]} Nb6
{[%emt 0:01:50]} 30. d5 {[%emt 0:01:09]} Bd7 {[%emt 0:01:56]} 31. Bb2 {[%emt 0:
00:00]} Ba4 {[%emt 0:03:33]} 32. Rc1 {[%emt 0:00:27]} Nbd7 {[%emt 0:00:32]} 33.
Rxc8 {[%emt 0:02:41]} Rxc8 {[%emt 0:00:05]} 34. Rc1 {[%emt 0:01:01]} Rxc1+ {
[%emt 0:00:21]} 35. Bxc1 {[%emt 0:00:01]} Ne5 {[%emt 0:00:54]} 36. Bb1 {
[%emt 0:00:24]} Nfd7 {[%emt 0:00:39]} 37. Nf5 {[%emt 0:02:10]} b5 {[%emt 0:00:
00]} 38. Nd4 {[%emt 0:00:19]} Nc5 {[%emt 0:00:23]} 39. Nc6 {[%emt 0:00:45]}
Nxc6 {[%emt 0:02:21]} 40. dxc6 {[%emt 0:00:01]} Ne6 {[%emt 0:00:32]} 41. Ba2 {
[%emt 0:31:03]} b4 {[%emt 0:03:17]} 42. Bxe6 {[%emt 0:00:00]} fxe6 {[%emt 0:00:
00]} 43. c7 {[%emt 0:00:00]} Bd7 {[%emt 0:00:04]} 44. axb4 {[%emt 0:00:00]} Kf7
{[%emt 0:00:14]} 45. b5 {[%emt 0:00:00]} Ke7 {[%emt 0:03:13]} 46. Ba3+ {
[%emt 0:00:00]} Kf6 {[%emt 0:02:31]} 47. Kf2 {[%emt 0:00:00]} Bc8 {[%emt 0:00:
00]} 48. Ke3 {[%emt 0:00:00]} a6 {[%emt 0:03:39]} 49. b6 {[%emt 0:00:00]} Bb7 {
[%emt 0:00:14]} 50. Kd4 {[%emt 0:00:00]} a5 {[%emt 0:04:41]} 51. e5+ {[%emt 0:
00:00]} Kf5 {[%emt 0:03:36]} 52. Kc5 {[%emt 0:00:00]} Kxe5 {[%emt 0:00:29]} 53.
Bb2+ {[%emt 0:00:00]} Ke4 {[%emt 0:04:35]} 54. Kd6 {[%emt 0:00:00]} 1-0

[Event "44th Chess Olympiad Women 2022"]
[Site "Chennai"]
[Date "2022.08.06"]
[Round "8.28"]
[White "Nilssen, Ellen Fredericia"]
[Black "Zhang, Jasmine Haomo"]
[Result "1-0"]
[WhiteElo "2142"]
[BlackElo "1972"]
[Annotator "NA RC"]
[PlyCount "81"]
[EventDate "2022.??.??"]
[TimeControl "60"]

1. d4 {[%emt 0:00:02]} d5 {[%emt 0:00:09]} 2. c4 {[%emt 0:00:07]} e6 {[%emt 0:
00:00]} 3. Nc3 {[%emt 0:00:05]} Be7 {[%emt 0:00:05]} 4. Nf3 {[%emt 0:01:53]}
Nf6 {[%emt 0:00:14]} 5. Bg5 {[%emt 0:00:17]} Nbd7 {[%emt 0:01:09]} 6. e3 {
[%emt 0:00:35]} c6 {[%emt 0:01:02]} 7. Rc1 {[%emt 0:03:08]} Ne4 {[%emt 0:06:55]
} 8. Nxe4 {[%emt 0:07:34]} dxe4 {[%emt 0:00:08]} 9. Bxe7 {[%emt 0:00:12]} Qxe7
{[%emt 0:00:07]} 10. Nd2 {[%emt 0:00:41]} f5 {[%emt 0:00:50]} 11. f4 {[%emt 0:
00:00]} Nf6 {[%emt 0:09:08]} 12. c5 {[%emt 0:05:52]} Nd5 {[%emt 0:02:40]} 13.
Nc4 {[%emt 0:00:52]} O-O {[%emt 0:08:33]} 14. Qd2 {[%emt 0:00:16]} g5 {[%emt 0:
00:00]} 15. g3 {[%emt 0:06:20]} Rf7 {[%emt 0:05:22]} 16. Nd6 {[%emt 0:05:13]}
Rg7 {[%emt 0:01:35]} 17. Bc4 {[%emt 0:05:17]} gxf4 {[%emt 0:03:15]} 18. gxf4 {
[%emt 0:00:35]} b5 {[%emt 0:02:09]} 19. Bxd5 {[%emt 0:01:25]} exd5 {[%emt 0:00:
00]} 20. Kd1 {[%emt 0:00:46]} Be6 {[%emt 0:06:10]} 21. Kc2 {[%emt 0:00:52]} Kh8
{[%emt 0:00:50]} 22. Rcg1 {[%emt 0:06:26]} Rag8 {[%emt 0:03:00]} 23. Qf2 {
[%emt 0:00:16]} Rxg1 {[%emt 0:08:54]} 24. Rxg1 {[%emt 0:00:04]} Rg6 {[%emt 0:
00:00]} 25. Rxg6 {[%emt 0:02:11]} hxg6 {[%emt 0:00:15]} 26. Qg3 {[%emt 0:00:07]
} Kh7 {[%emt 0:04:48]} 27. Qg5 {[%emt 0:01:51]} Qxg5 {[%emt 0:01:25]} 28. fxg5
{[%emt 0:00:03]} Kg7 {[%emt 0:03:42]} 29. Kd2 {[%emt 0:00:33]} Kf8 {[%emt 0:00:
00]} 30. b4 {[%emt 0:05:27]} Ke7 {[%emt 0:01:14]} 31. Ke2 {[%emt 0:00:11]} Bd7
{[%emt 0:03:30]} 32. Kf2 {[%emt 0:00:06]} Be6 {[%emt 0:06:06]} 33. Kg3 {
[%emt 0:00:13]} Bd7 {[%emt 0:01:06]} 34. Kf4 {[%emt 0:00:07]} Be6 {[%emt 0:00:
00]} 35. h4 {[%emt 0:01:14]} Bf7 {[%emt 0:03:20]} 36. h5 {[%emt 0:00:35]} gxh5
{[%emt 0:00:09]} 37. Nxf5+ {[%emt 0:00:26]} Kf8 {[%emt 0:03:28]} 38. Ke5 {
[%emt 0:01:51]} Bg6 {[%emt 0:00:59]} 39. Nh4 {[%emt 0:00:07]} Be8 {[%emt 0:00:
00]} 40. Kf6 {[%emt 0:00:34]} Bd7 {[%emt 0:00:48]} 41. g6 {[%emt 0:30:30]} 1-0

[Event "44th Chess Olympiad Women 2022"]
[Site "Chennai"]
[Date "2022.08.06"]
[Round "8.28"]
[White "Punsalan, Vyanla M"]
[Black "Guindy, Esmat Susanne"]
[Result "1-0"]
[WhiteElo "1895"]
[BlackElo "2097"]
[Annotator "NA RC"]
[PlyCount "55"]
[EventDate "2022.??.??"]
[TimeControl "60"]

1. e4 {[%emt 0:00:07]} e6 {[%emt 0:00:06]} 2. d4 {[%emt 0:00:16]} d5 {[%emt 0:
00:00]} 3. Nc3 {[%emt 0:01:09]} Nf6 {[%emt 0:00:11]} 4. Bg5 {[%emt 0:00:19]}
Be7 {[%emt 0:02:34]} 5. e5 {[%emt 0:01:57]} Nfd7 {[%emt 0:00:30]} 6. h4 {
[%emt 0:03:22]} a6 {[%emt 0:09:32]} 7. Bxe7 {[%emt 0:13:59]} Qxe7 {[%emt 0:00:
00]} 8. Qg4 {[%emt 0:02:03]} f5 {[%emt 0:06:45]} 9. exf6 {[%emt 0:11:55]} Nxf6
{[%emt 0:00:51]} 10. Qe2 {[%emt 0:00:26]} c5 {[%emt 0:05:57]} 11. dxc5 {
[%emt 0:05:58]} Qxc5 {[%emt 0:04:59]} 12. g4 {[%emt 0:07:09]} d4 {[%emt 0:00:
00]} 13. g5 {[%emt 0:17:11]} dxc3 {[%emt 0:01:55]} 14. b4 {[%emt 0:04:17]} Qd5
{[%emt 0:05:34]} 15. gxf6 {[%emt 0:00:45]} O-O {[%emt 0:14:05]} 16. fxg7 {
[%emt 0:05:16]} Rf4 {[%emt 0:00:00]} 17. Rd1 {[%emt 0:02:37]} Re4 {[%emt 0:00:
00]} 18. Rxd5 {[%emt 0:01:29]} Rxe2+ {[%emt 0:01:09]} 19. Nxe2 {[%emt 0:01:27]}
exd5 {[%emt 0:00:06]} 20. Nxc3 {[%emt 0:02:41]} d4 {[%emt 0:02:31]} 21. Nd5 {
[%emt 0:01:09]} Bg4 {[%emt 0:08:58]} 22. Rg1 {[%emt 0:03:37]} h5 {[%emt 0:00:
00]} 23. Nb6 {[%emt 0:00:33]} Ra7 {[%emt 0:00:16]} 24. f3 {[%emt 0:00:47]} Nc6
{[%emt 0:00:26]} 25. fxg4 {[%emt 0:00:46]} Ne5 {[%emt 0:00:15]} 26. gxh5 {
[%emt 0:01:09]} Nf3+ {[%emt 0:00:16]} 27. Kf2 {[%emt 0:00:04]} Nxg1 {[%emt 0:
00:00]} 28. h6 {[%emt 0:00:10]} 1-0